[Event "Early-Titled-Tuesday-Blitz-September-05-2023"]
[Site "Chess.com"]
[Date "2023.09.05"]
[Round "6"]
[White "TanitoluwaAps116"]
[Black "MusicCityMaster"]
[Result "1-0"]
[WhiteElo "2777"]
[BlackElo "2366"]
[TimeControl "180+1"]
[EndTime "9:06:37 PDT"]
[Termination "TanitoluwaAps116 won on time"]

1. e4 {[%clk 0:02:56.9]} 1... c5 {[%clk 0:02:59.7]} 2. Nf3 {[%clk 0:02:57.1]}
2... d6 {[%clk 0:03:00.3]} 3. Bb5+ {[%clk 0:02:56.7]} 3... Nd7 {[%clk
0:03:00.1]} 4. c3 {[%clk 0:02:54.2]} 4... a6 {[%clk 0:02:59.9]} 5. Bd3 {[%clk
0:02:51.9]} 5... Ngf6 {[%clk 0:02:56.6]} 6. O-O {[%clk 0:02:51.1]} 6... g6
{[%clk 0:02:54.8]} 7. Bc2 {[%clk 0:02:51.4]} 7... Bg7 {[%clk 0:02:55.2]} 8. d4
{[%clk 0:02:52]} 8... O-O {[%clk 0:02:53.4]} 9. e5 {[%clk 0:02:46.8]} 9... Ne8
{[%clk 0:02:53]} 10. Re1 {[%clk 0:02:39.2]} 10... b5 {[%clk 0:02:33.7]} 11. Bg5
{[%clk 0:02:20.7]} 11... dxe5 {[%clk 0:02:26.2]} 12. dxc5 {[%clk 0:02:03.6]}
12... Bb7 {[%clk 0:02:17.3]} 13. a4 {[%clk 0:01:47.2]} 13... e4 {[%clk
0:01:56.1]} 14. axb5 {[%clk 0:01:19.4]} 14... axb5 {[%clk 0:01:49.4]} 15. Rxa8
{[%clk 0:01:14.9]} 15... Bxa8 {[%clk 0:01:50.3]} 16. Bxe4 {[%clk 0:01:13.5]}
16... Bxe4 {[%clk 0:01:47.2]} 17. Rxe4 {[%clk 0:01:14.4]} 17... Nef6 {[%clk
0:01:42.6]} 18. Rd4 {[%clk 0:00:59.7]} 18... Qc7 {[%clk 0:01:37.6]} 19. b4
{[%clk 0:00:55.7]} 19... Ra8 {[%clk 0:01:31.6]} 20. Nbd2 {[%clk 0:00:42.7]}
20... Nf8 {[%clk 0:01:25]} 21. h3 {[%clk 0:00:30.3]} 21... Ne6 {[%clk
0:01:22.1]} 22. Rd3 {[%clk 0:00:23.5]} 22... Nxg5 {[%clk 0:01:18.1]} 23. Nxg5
{[%clk 0:00:24.4]} 23... h6 {[%clk 0:01:03.2]} 24. Ngf3 {[%clk 0:00:20.5]} 24...
Ra2 {[%clk 0:00:59.4]} 25. Qb3 {[%clk 0:00:18.3]} 25... Ra1+ {[%clk 0:00:58.3]}
26. Nf1 {[%clk 0:00:16.1]} 26... Ne4 {[%clk 0:00:54.3]} 27. c4 {[%clk
0:00:12.6]} 27... Qf4 {[%clk 0:00:36.1]} 28. cxb5 {[%clk 0:00:08.4]} 28... Qc1
{[%clk 0:00:32.8]} 29. Rd8+ {[%clk 0:00:08.4]} 29... Kh7 {[%clk 0:00:32.5]} 30.
Qd3 {[%clk 0:00:09]} 30... Nc3 {[%clk 0:00:20.2]} 31. g3 {[%clk 0:00:06.9]}
31... e5 {[%clk 0:00:11.9]} 32. Nxe5 {[%clk 0:00:03.3]} 32... Bxe5 {[%clk
0:00:11.2]} 33. Kg2 {[%clk 0:00:03.5]} 33... Ne4 {[%clk 0:00:07.9]} 34. b6
{[%clk 0:00:02.1]} 34... Nxg3 {[%clk 0:00:05.5]} 35. fxg3 {[%clk 0:00:01.8]}
35... Ra2+ {[%clk 0:00:05.8]} 36. Kf3 {[%clk 0:00:02]} 36... Ra3 {[%clk
0:00:04]} 37. Qxa3 {[%clk 0:00:01.5]} 37... Qxa3+ {[%clk 0:00:04.7]} 38. Ne3
{[%clk 0:00:02.3]} 38... Bf6 {[%clk 0:00:04.4]} 39. b7 {[%clk 0:00:02.4]} 39...
Bxd8 {[%clk 0:00:03.5]} 40. b8=Q {[%clk 0:00:03.3]} 40... Qd3 {[%clk 0:00:02.9]}
41. Qd6 {[%clk 0:00:03.1]} 41... Qxd6 {[%clk 0:00:02.6]} 42. cxd6 {[%clk
0:00:04]} 42... Kg7 {[%clk 0:00:03.2]} 43. Ke4 {[%clk 0:00:04]} 43... Kf6 {[%clk
0:00:03.7]} 44. Kd5 {[%clk 0:00:04.9]} 44... g5 {[%clk 0:00:03.3]} 45. b5 {[%clk
0:00:05.5]} 45... Bb6 {[%clk 0:00:03.4]} 46. Ng4+ {[%clk 0:00:05.2]} 46... Kf5
{[%clk 0:00:02.9]} 47. Ne5 {[%clk 0:00:05.6]} 47... f6 {[%clk 0:00:03]} 48. Nc4
{[%clk 0:00:04.6]} 48... Bd8 {[%clk 0:00:02.5]} 49. b6 {[%clk 0:00:05.2]} 49...
Bxb6 {[%clk 0:00:02.7]} 50. Nxb6 {[%clk 0:00:05.5]} 50... g4 {[%clk 0:00:03.6]}
51. h4 {[%clk 0:00:04.9]} 51... h5 {[%clk 0:00:02.5]} 52. d7 {[%clk 0:00:05.3]}
1-0

[Event "Early-Titled-Tuesday-Blitz-September-05-2023"]
[Site "Chess.com"]
[Date "2023.09.05"]
[Round "6"]
[White "ckgchess"]
[Black "amintabatabaei"]
[Result "0-1"]
[WhiteElo "2880"]
[BlackElo "3024"]
[TimeControl "180+1"]
[EndTime "9:06:38 PDT"]
[Termination "amintabatabaei won on time"]

1. e4 {[%clk 0:03:00.9]} 1... d6 {[%clk 0:02:54.9]} 2. d4 {[%clk 0:03:01.1]}
2... Nf6 {[%clk 0:02:55.6]} 3. Nc3 {[%clk 0:03:01.8]} 3... e5 {[%clk 0:02:56.3]}
4. Nf3 {[%clk 0:03:02.3]} 4... exd4 {[%clk 0:02:57]} 5. Nxd4 {[%clk 0:03:03.2]}
5... Be7 {[%clk 0:02:57.4]} 6. Bc4 {[%clk 0:02:58.8]} 6... O-O {[%clk
0:02:56.6]} 7. O-O {[%clk 0:02:59.2]} 7... Nxe4 {[%clk 0:02:55.6]} 8. Nxe4
{[%clk 0:02:44.1]} 8... d5 {[%clk 0:02:55.7]} 9. Bd3 {[%clk 0:02:44.2]} 9...
dxe4 {[%clk 0:02:55.5]} 10. Bxe4 {[%clk 0:02:45.1]} 10... c6 {[%clk 0:02:52.3]}
11. c3 {[%clk 0:02:41.8]} 11... Na6 {[%clk 0:02:50.4]} 12. Re1 {[%clk
0:02:26.7]} 12... Bf6 {[%clk 0:02:48.2]} 13. Be3 {[%clk 0:02:09.1]} 13... Nc7
{[%clk 0:02:37.2]} 14. Qc2 {[%clk 0:02:05.3]} 14... g6 {[%clk 0:02:34.8]} 15.
Rad1 {[%clk 0:02:05]} 15... Nd5 {[%clk 0:02:31.6]} 16. Bh6 {[%clk 0:01:59.5]}
16... Re8 {[%clk 0:02:31.1]} 17. Bxd5 {[%clk 0:01:18]} 17... cxd5 {[%clk
0:02:32]} 18. Qb3 {[%clk 0:01:14.2]} 18... Rxe1+ {[%clk 0:01:26.6]} 19. Rxe1
{[%clk 0:01:15.1]} 19... Bxd4 {[%clk 0:01:26.4]} 20. cxd4 {[%clk 0:01:08.4]}
20... Be6 {[%clk 0:01:26.8]} 21. Qxb7 {[%clk 0:01:00.8]} 21... Rb8 {[%clk
0:01:20.5]} 22. Qxa7 {[%clk 0:01:01.2]} 22... Rxb2 {[%clk 0:01:02.8]} 23. Qa3
{[%clk 0:01:01]} 23... Rb8 {[%clk 0:00:55.4]} 24. Qg3 {[%clk 0:00:51.5]} 24...
Rb6 {[%clk 0:00:45.2]} 25. h3 {[%clk 0:00:42.7]} 25... f6 {[%clk 0:00:42.6]} 26.
Rc1 {[%clk 0:00:37.1]} 26... Rb7 {[%clk 0:00:31.6]} 27. Rc6 {[%clk 0:00:33.6]}
27... Qd7 {[%clk 0:00:24.4]} 28. Ra6 {[%clk 0:00:25.3]} 28... Kf7 {[%clk
0:00:10.4]} 29. Qa3 {[%clk 0:00:25.2]} 29... Qe7 {[%clk 0:00:09.3]} 30. Qg3
{[%clk 0:00:20.6]} 30... g5 {[%clk 0:00:09]} 31. h4 {[%clk 0:00:16.6]} 31... g4
{[%clk 0:00:09.4]} 32. h5 {[%clk 0:00:16.5]} 32... Qc7 {[%clk 0:00:08.5]} 33.
Qxc7+ {[%clk 0:00:07.4]} 33... Rxc7 {[%clk 0:00:09.1]} 34. a4 {[%clk 0:00:06.1]}
34... Bf5 {[%clk 0:00:08.4]} 35. Kh2 {[%clk 0:00:04.5]} 35... Bd3 {[%clk
0:00:07.4]} 36. Rd6 {[%clk 0:00:03.9]} 36... Ra7 {[%clk 0:00:06.9]} 37. Rxd5
{[%clk 0:00:02.9]} 37... Rxa4 {[%clk 0:00:07.4]} 38. Be3 {[%clk 0:00:02.4]}
38... Ke6 {[%clk 0:00:07]} 39. Rc5 {[%clk 0:00:02.5]} 39... Be4 {[%clk
0:00:06.4]} 40. Kg3 {[%clk 0:00:02.6]} 40... f5 {[%clk 0:00:05.9]} 41. Re5+
{[%clk 0:00:03.3]} 41... Kf6 {[%clk 0:00:06.1]} 42. Rc5 {[%clk 0:00:02.8]} 42...
Ra3 {[%clk 0:00:06.1]} 43. Rb5 {[%clk 0:00:02.6]} 43... Ra6 {[%clk 0:00:05.6]}
44. Rc5 {[%clk 0:00:02.4]} 44... Ra3 {[%clk 0:00:05.4]} 45. Rc7 {[%clk
0:00:02.2]} 45... Bd3 {[%clk 0:00:03.2]} 0-1

[Event "Early-Titled-Tuesday-Blitz-September-05-2023"]
[Site "Chess.com"]
[Date "2023.09.05"]
[Round "6"]
[White "bazar-wokzal"]
[Black "andrzej"]
[Result "0-1"]
[WhiteElo "2519"]
[BlackElo "2395"]
[TimeControl "180+1"]
[EndTime "9:06:38 PDT"]
[Termination "andrzej won on time"]

1. e4 {[%clk 0:03:00.9]} 1... e5 {[%clk 0:02:56.8]} 2. Bc4 {[%clk 0:03:00.3]}
2... Nf6 {[%clk 0:02:55.5]} 3. d3 {[%clk 0:03:00.6]} 3... c6 {[%clk 0:02:55.8]}
4. Nf3 {[%clk 0:03:00.3]} 4... d5 {[%clk 0:02:54.7]} 5. Bb3 {[%clk 0:03:00.1]}
5... a5 {[%clk 0:02:54.9]} 6. Nc3 {[%clk 0:02:59.5]} 6... Bb4 {[%clk 0:02:53.5]}
7. a3 {[%clk 0:02:56.6]} 7... Bxc3+ {[%clk 0:02:53.3]} 8. bxc3 {[%clk
0:02:56.6]} 8... dxe4 {[%clk 0:02:51]} 9. Nxe5 {[%clk 0:02:54.5]} 9... O-O
{[%clk 0:02:50.8]} 10. O-O {[%clk 0:02:51.4]} 10... a4 {[%clk 0:02:50.2]} 11.
Ba2 {[%clk 0:02:50.7]} 11... Nbd7 {[%clk 0:02:49.9]} 12. Nxd7 {[%clk 0:02:42.6]}
12... Qxd7 {[%clk 0:02:50]} 13. Bg5 {[%clk 0:02:42.5]} 13... Qf5 {[%clk
0:02:46]} 14. Qd2 {[%clk 0:02:06]} 14... exd3 {[%clk 0:02:27.6]} 15. cxd3 {[%clk
0:02:05.5]} 15... h6 {[%clk 0:02:20.6]} 16. Bh4 {[%clk 0:01:56.7]} 16... Re8
{[%clk 0:02:18.2]} 17. Rae1 {[%clk 0:01:53.7]} 17... Be6 {[%clk 0:02:16.2]} 18.
Bb1 {[%clk 0:01:50.4]} 18... Nd5 {[%clk 0:02:00.4]} 19. Bg3 {[%clk 0:01:39.9]}
19... Nb6 {[%clk 0:01:44.1]} 20. Re5 {[%clk 0:01:35.4]} 20... Qf6 {[%clk
0:01:42]} 21. Rfe1 {[%clk 0:01:34]} 21... Red8 {[%clk 0:01:35.6]} 22. Qb2 {[%clk
0:01:05.9]} 22... Nd7 {[%clk 0:01:32.9]} 23. R5e3 {[%clk 0:00:58.9]} 23... b5
{[%clk 0:01:25.9]} 24. d4 {[%clk 0:00:55.6]} 24... Nb6 {[%clk 0:01:25.8]} 25.
Be5 {[%clk 0:00:51.3]} 25... Qe7 {[%clk 0:01:20]} 26. Rg3 {[%clk 0:00:48.7]}
26... g5 {[%clk 0:01:04.6]} 27. Qc2 {[%clk 0:00:44]} 27... f5 {[%clk 0:01:04.7]}
28. f4 {[%clk 0:00:34.8]} 28... g4 {[%clk 0:00:56.7]} 29. Rge3 {[%clk
0:00:18.1]} 29... Nd5 {[%clk 0:00:47.3]} 30. R3e2 {[%clk 0:00:17.4]} 30... Qf7
{[%clk 0:00:46.5]} 31. c4 {[%clk 0:00:11.3]} 31... bxc4 {[%clk 0:00:45.2]} 32.
h3 {[%clk 0:00:09.5]} 32... h5 {[%clk 0:00:41.4]} 33. hxg4 {[%clk 0:00:09.5]}
33... hxg4 {[%clk 0:00:41.6]} 34. g3 {[%clk 0:00:10.1]} 34... Kf8 {[%clk
0:00:25.9]} 35. Qxc4 {[%clk 0:00:09.8]} 35... Rac8 {[%clk 0:00:14.8]} 36. Rh2
{[%clk 0:00:09.7]} 36... c5 {[%clk 0:00:11.6]} 37. Qxa4 {[%clk 0:00:07.7]} 37...
Ke7 {[%clk 0:00:07.1]} 38. dxc5 {[%clk 0:00:06.8]} 38... Rd7 {[%clk 0:00:06.6]}
39. Bd6+ {[%clk 0:00:06.7]} 39... Rxd6 {[%clk 0:00:05]} 40. cxd6+ {[%clk
0:00:06.5]} 40... Kxd6 {[%clk 0:00:05.5]} 41. Qa6+ {[%clk 0:00:06.9]} 41... Rc6
{[%clk 0:00:05.5]} 42. Qa8 {[%clk 0:00:04.8]} 42... Qc7 {[%clk 0:00:04.7]} 43.
Qf8+ {[%clk 0:00:04.2]} 43... Ne7 {[%clk 0:00:04.9]} 44. Rh6 {[%clk 0:00:03.6]}
44... Qb6+ {[%clk 0:00:05.3]} 45. Kh1 {[%clk 0:00:01.8]} 45... Kd7 {[%clk
0:00:04.1]} 0-1

[Event "Early-Titled-Tuesday-Blitz-September-05-2023"]
[Site "Chess.com"]
[Date "2023.09.05"]
[Round "6"]
[White "VitaliyBernadskiy"]
[Black "Jospem"]
[Result "0-1"]
[WhiteElo "2822"]
[BlackElo "3050"]
[TimeControl "180+1"]
[EndTime "9:06:39 PDT"]
[Termination "Jospem won on time"]

1. e4 {[%clk 0:03:00.9]} 1... c5 {[%clk 0:02:58]} 2. Nf3 {[%clk 0:03:01.1]} 2...
d6 {[%clk 0:02:58.7]} 3. Bb5+ {[%clk 0:03:00.7]} 3... Nd7 {[%clk 0:02:59]} 4.
O-O {[%clk 0:03:00.5]} 4... a6 {[%clk 0:02:59.7]} 5. Bd3 {[%clk 0:03:00.3]} 5...
Ngf6 {[%clk 0:02:59.4]} 6. c3 {[%clk 0:03:00.6]} 6... b6 {[%clk 0:03:00.1]} 7.
Bc2 {[%clk 0:03:00]} 7... Bb7 {[%clk 0:03:00.8]} 8. Re1 {[%clk 0:03:00.1]} 8...
Qc7 {[%clk 0:03:00.9]} 9. d4 {[%clk 0:02:59.3]} 9... e6 {[%clk 0:02:57.8]} 10.
Nbd2 {[%clk 0:02:55.4]} 10... Rc8 {[%clk 0:02:57.6]} 11. Bd3 {[%clk 0:02:55.4]}
11... Be7 {[%clk 0:02:57.5]} 12. Qe2 {[%clk 0:02:54.3]} 12... b5 {[%clk
0:02:52.5]} 13. Nf1 {[%clk 0:02:52.9]} 13... e5 {[%clk 0:02:52.2]} 14. Ng3
{[%clk 0:02:51.6]} 14... g6 {[%clk 0:02:44.4]} 15. Bh6 {[%clk 0:02:48.5]} 15...
Ng4 {[%clk 0:02:34.5]} 16. Bd2 {[%clk 0:02:47.9]} 16... Ngf6 {[%clk 0:02:33.2]}
17. a4 {[%clk 0:02:47]} 17... c4 {[%clk 0:02:32.4]} 18. Bc2 {[%clk 0:02:47]}
18... O-O {[%clk 0:02:33.2]} 19. b4 {[%clk 0:02:08.1]} 19... Rfe8 {[%clk
0:02:24.4]} 20. d5 {[%clk 0:02:04.7]} 20... Bf8 {[%clk 0:02:24.9]} 21. axb5
{[%clk 0:01:59.4]} 21... axb5 {[%clk 0:02:24.3]} 22. Ra5 {[%clk 0:01:59.9]}
22... Ra8 {[%clk 0:02:19.2]} 23. Rxb5 {[%clk 0:01:54.3]} 23... Ra2 {[%clk
0:02:19]} 24. Bb1 {[%clk 0:01:54.4]} 24... Ra1 {[%clk 0:02:13.6]} 25. Bc2 {[%clk
0:01:48.8]} 25... Ra2 {[%clk 0:02:13.9]} 26. Bb1 {[%clk 0:01:47.7]} 26... Ra1
{[%clk 0:02:13.6]} 27. Bc2 {[%clk 0:01:32.4]} 27... Rea8 {[%clk 0:02:13.7]} 28.
h3 {[%clk 0:01:23]} 28... R1a2 {[%clk 0:02:10.9]} 29. Bb1 {[%clk 0:01:22.1]}
29... Ra1 {[%clk 0:02:11.6]} 30. Bc2 {[%clk 0:01:22.1]} 30... R1a3 {[%clk
0:02:03.4]} 31. Nh2 {[%clk 0:01:03.7]} 31... Ba6 {[%clk 0:02:01.3]} 32. Ra5
{[%clk 0:01:04.1]} 32... Rxa5 {[%clk 0:02:00.1]} 33. bxa5 {[%clk 0:01:05]} 33...
Qxa5 {[%clk 0:02:00.6]} 34. Ng4 {[%clk 0:01:03.1]} 34... Nxg4 {[%clk 0:01:55.3]}
35. Qxg4 {[%clk 0:01:03.2]} 35... Qc7 {[%clk 0:01:41.5]} 36. Ra1 {[%clk
0:00:50.4]} 36... Nc5 {[%clk 0:01:40.9]} 37. Qh4 {[%clk 0:00:48.9]} 37... Rb8
{[%clk 0:01:28.7]} 38. Bg5 {[%clk 0:00:39.6]} 38... Bc8 {[%clk 0:01:19.7]} 39.
Bf6 {[%clk 0:00:24.1]} 39... Rb2 {[%clk 0:01:19.7]} 40. Bd1 {[%clk 0:00:22.1]}
40... Nd7 {[%clk 0:00:49.2]} 41. Bg4 {[%clk 0:00:19.7]} 41... Nxf6 {[%clk
0:00:46.6]} 42. Qxf6 {[%clk 0:00:20.6]} 42... Be7 {[%clk 0:00:44]} 43. Qf3
{[%clk 0:00:20.2]} 43... Bb7 {[%clk 0:00:39.6]} 44. Qe3 {[%clk 0:00:18.5]} 44...
Qb8 {[%clk 0:00:27.7]} 45. Ra4 {[%clk 0:00:15.1]} 45... Bd8 {[%clk 0:00:26]} 46.
Rb4 {[%clk 0:00:12]} 46... Rxb4 {[%clk 0:00:25.9]} 47. cxb4 {[%clk 0:00:12.9]}
47... Ba6 {[%clk 0:00:25.9]} 48. Qc3 {[%clk 0:00:12]} 48... Bb6 {[%clk
0:00:26.3]} 49. Ne2 {[%clk 0:00:09.2]} 49... Qa7 {[%clk 0:00:26.9]} 50. Qf3
{[%clk 0:00:08.1]} 50... h5 {[%clk 0:00:20.3]} 51. Bxh5 {[%clk 0:00:01.4]} 51...
gxh5 {[%clk 0:00:21.2]} 52. Qxh5 {[%clk 0:00:01.5]} 52... Bxf2+ {[%clk
0:00:21.9]} 53. Kh1 {[%clk 0:00:01.5]} 53... Qe3 {[%clk 0:00:22.6]} 54. Qg4+
{[%clk 0:00:01.6]} 54... Kh7 {[%clk 0:00:23.3]} 55. Qh5+ {[%clk 0:00:01.8]}
55... Kg7 {[%clk 0:00:23.4]} 56. Qg4+ {[%clk 0:00:02.3]} 56... Kf8 {[%clk
0:00:24.1]} 0-1

[Event "Early-Titled-Tuesday-Blitz-September-05-2023"]
[Site "Chess.com"]
[Date "2023.09.05"]
[Round "6"]
[White "Jumbo"]
[Black "alpltl"]
[Result "1-0"]
[WhiteElo "2904"]
[BlackElo "2361"]
[TimeControl "180+1"]
[EndTime "9:06:39 PDT"]
[Termination "Jumbo won on time"]

1. Nf3 {[%clk 0:03:00.9]} 1... g6 {[%clk 0:02:54.1]} 2. c4 {[%clk 0:03:01.1]}
2... Bg7 {[%clk 0:02:54]} 3. g3 {[%clk 0:03:02]} 3... c5 {[%clk 0:02:54.1]} 4.
Bg2 {[%clk 0:03:02.9]} 4... Nc6 {[%clk 0:02:54.5]} 5. O-O {[%clk 0:03:03.8]}
5... d6 {[%clk 0:02:54.7]} 6. e3 {[%clk 0:03:03.3]} 6... Nf6 {[%clk 0:02:52.5]}
7. Nc3 {[%clk 0:02:58.6]} 7... O-O {[%clk 0:02:52.5]} 8. h3 {[%clk 0:02:58.4]}
8... Bf5 {[%clk 0:02:50]} 9. d3 {[%clk 0:02:58.2]} 9... Rc8 {[%clk 0:02:42.8]}
10. Qe2 {[%clk 0:02:57.3]} 10... a6 {[%clk 0:02:42.4]} 11. Rd1 {[%clk
0:02:57.3]} 11... Qc7 {[%clk 0:02:39.2]} 12. b3 {[%clk 0:02:48]} 12... Qb8
{[%clk 0:02:36.7]} 13. Bb2 {[%clk 0:02:47.2]} 13... b5 {[%clk 0:02:36.5]} 14.
Rac1 {[%clk 0:02:44.8]} 14... Rfd8 {[%clk 0:02:31.1]} 15. Nd5 {[%clk 0:02:14.8]}
15... Ne8 {[%clk 0:02:06.6]} 16. Bxg7 {[%clk 0:02:10.2]} 16... Nxg7 {[%clk
0:02:01]} 17. d4 {[%clk 0:02:06.3]} 17... Be4 {[%clk 0:01:52.7]} 18. dxc5 {[%clk
0:02:00.4]} 18... dxc5 {[%clk 0:01:51.4]} 19. cxb5 {[%clk 0:01:59.7]} 19... Rxd5
{[%clk 0:01:46]} 20. Rxd5 {[%clk 0:01:46.4]} 20... Bxd5 {[%clk 0:01:45.2]} 21.
bxc6 {[%clk 0:01:43.3]} 21... Rxc6 {[%clk 0:01:30.7]} 22. Qd3 {[%clk 0:01:17.5]}
22... Qd6 {[%clk 0:01:25.3]} 23. Rd1 {[%clk 0:00:58.2]} 23... Bxf3 {[%clk
0:01:08.5]} 24. Bxf3 {[%clk 0:00:56]} 24... Qxd3 {[%clk 0:01:09.1]} 25. Rxd3
{[%clk 0:00:56.7]} 25... Rc8 {[%clk 0:01:09.8]} 26. Rd7 {[%clk 0:00:56]} 26...
Nf5 {[%clk 0:00:54.5]} 27. Be2 {[%clk 0:00:50.9]} 27... Kf8 {[%clk 0:00:44.8]}
28. Ra7 {[%clk 0:00:45.7]} 28... Rd8 {[%clk 0:00:37.7]} 29. Rxa6 {[%clk
0:00:39.4]} 29... Rd2 {[%clk 0:00:37.6]} 30. Kf1 {[%clk 0:00:39.7]} 30... Nd6
{[%clk 0:00:32.9]} 31. Ra5 {[%clk 0:00:34.3]} 31... Ne4 {[%clk 0:00:27.6]} 32.
a4 {[%clk 0:00:19.3]} 32... Rb2 {[%clk 0:00:17.3]} 33. Rb5 {[%clk 0:00:16.4]}
33... Nc3 {[%clk 0:00:11.4]} 34. Rb8+ {[%clk 0:00:15.8]} 34... Kg7 {[%clk
0:00:12]} 35. Bd3 {[%clk 0:00:16]} 35... Nxa4 {[%clk 0:00:11.2]} 36. Rb5 {[%clk
0:00:12.3]} 36... Nc3 {[%clk 0:00:06.6]} 37. Rb7 {[%clk 0:00:08.2]} 37... Kf6
{[%clk 0:00:05.7]} 38. g4 {[%clk 0:00:07.1]} 38... e6 {[%clk 0:00:06.1]} 39. h4
{[%clk 0:00:07.5]} 39... h6 {[%clk 0:00:06.1]} 40. f4 {[%clk 0:00:07.3]} 40...
g5 {[%clk 0:00:06]} 41. fxg5+ {[%clk 0:00:07.2]} 41... hxg5 {[%clk 0:00:06.9]}
42. h5 {[%clk 0:00:07.8]} 42... Kg7 {[%clk 0:00:06.4]} 43. Bg6 {[%clk
0:00:06.2]} 43... c4 {[%clk 0:00:04]} 44. Rxf7+ {[%clk 0:00:06.1]} 44... Kg8
{[%clk 0:00:04.5]} 45. bxc4 {[%clk 0:00:06.6]} 45... Nd1 {[%clk 0:00:02.4]} 46.
Rf3 {[%clk 0:00:06.9]} 46... Rb4 {[%clk 0:00:01.4]} 47. h6 {[%clk 0:00:06.4]}
1-0

[Event "Early-Titled-Tuesday-Blitz-September-05-2023"]
[Site "Chess.com"]
[Date "2023.09.05"]
[Round "6"]
[White "vugarrasulov"]
[Black "DenLaz"]
[Result "1/2-1/2"]
[WhiteElo "2927"]
[BlackElo "3079"]
[TimeControl "180+1"]
[EndTime "9:06:40 PDT"]
[Termination "Game drawn - insufficient material"]

1. e4 {[%clk 0:03:00.9]} 1... c5 {[%clk 0:03:00.6]} 2. Nf3 {[%clk 0:03:00.8]}
2... e6 {[%clk 0:03:01.2]} 3. d4 {[%clk 0:02:59.7]} 3... cxd4 {[%clk 0:03:02.1]}
4. Nxd4 {[%clk 0:03:00.3]} 4... Nc6 {[%clk 0:03:02.6]} 5. Nc3 {[%clk 0:03:00.7]}
5... Qc7 {[%clk 0:03:03.2]} 6. Be3 {[%clk 0:02:59.5]} 6... a6 {[%clk 0:03:03.4]}
7. Qf3 {[%clk 0:03:00.1]} 7... b5 {[%clk 0:02:58.6]} 8. O-O-O {[%clk 0:02:54.7]}
8... Bb7 {[%clk 0:02:58.4]} 9. Qg3 {[%clk 0:02:41.3]} 9... Qxg3 {[%clk
0:02:57.1]} 10. hxg3 {[%clk 0:02:42.2]} 10... Nxd4 {[%clk 0:02:57.7]} 11. Bxd4
{[%clk 0:02:38.4]} 11... b4 {[%clk 0:02:57.9]} 12. Na4 {[%clk 0:02:38.6]} 12...
Bxe4 {[%clk 0:02:57.9]} 13. Nc5 {[%clk 0:02:23.6]} 13... Bc6 {[%clk 0:02:13.5]}
14. Nxa6 {[%clk 0:02:15.4]} 14... Rc8 {[%clk 0:02:13]} 15. Nxb4 {[%clk
0:02:07.2]} 15... Be4 {[%clk 0:01:46.7]} 16. f3 {[%clk 0:01:57.5]} 16... Bg6
{[%clk 0:01:45.6]} 17. Bd3 {[%clk 0:01:46.8]} 17... Bxd3 {[%clk 0:01:43.9]} 18.
Nxd3 {[%clk 0:01:44.1]} 18... Ne7 {[%clk 0:01:44.4]} 19. g4 {[%clk 0:01:38]}
19... f6 {[%clk 0:01:43.2]} 20. b3 {[%clk 0:01:36.7]} 20... e5 {[%clk
0:01:37.1]} 21. Bb2 {[%clk 0:01:36.7]} 21... d5 {[%clk 0:01:37.4]} 22. f4 {[%clk
0:01:27.3]} 22... e4 {[%clk 0:01:31.7]} 23. Nb4 {[%clk 0:01:27.7]} 23... Rd8
{[%clk 0:01:27.5]} 24. a4 {[%clk 0:01:21.1]} 24... Kf7 {[%clk 0:01:09.6]} 25. a5
{[%clk 0:01:21.4]} 25... Ra8 {[%clk 0:01:04.4]} 26. Nxd5 {[%clk 0:00:58.1]}
26... Rxa5 {[%clk 0:01:03.7]} 27. Nc3 {[%clk 0:00:58.3]} 27... e3 {[%clk
0:01:03.1]} 28. Rd3 {[%clk 0:00:51.8]} 28... Ng6 {[%clk 0:01:00.9]} 29. g3
{[%clk 0:00:51.1]} 29... Bc5 {[%clk 0:00:58.8]} 30. Ne4 {[%clk 0:00:48.7]} 30...
Bb4 {[%clk 0:00:30.7]} 31. Rxe3 {[%clk 0:00:43.7]} 31... Rha8 {[%clk 0:00:30.9]}
32. Kb1 {[%clk 0:00:34.9]} 32... h6 {[%clk 0:00:31.1]} 33. Rd1 {[%clk
0:00:33.9]} 33... Nf8 {[%clk 0:00:30.6]} 34. Nd6+ {[%clk 0:00:32.5]} 34... Kg8
{[%clk 0:00:29.8]} 35. Nc4 {[%clk 0:00:25.3]} 35... R5a7 {[%clk 0:00:29.1]} 36.
c3 {[%clk 0:00:24]} 36... Bc5 {[%clk 0:00:29.2]} 37. Red3 {[%clk 0:00:24.4]}
37... Rb8 {[%clk 0:00:28.8]} 38. b4 {[%clk 0:00:24.5]} 38... Bxb4 {[%clk
0:00:28]} 39. cxb4 {[%clk 0:00:24.7]} 39... Rxb4 {[%clk 0:00:28.9]} 40. Nd6
{[%clk 0:00:20.9]} 40... Ne6 {[%clk 0:00:27.6]} 41. Rc1 {[%clk 0:00:15.6]} 41...
Ra6 {[%clk 0:00:25.8]} 42. f5 {[%clk 0:00:15.6]} 42... Ng5 {[%clk 0:00:25.1]}
43. Rc4 {[%clk 0:00:16]} 43... Rxc4 {[%clk 0:00:14.3]} 44. Nxc4 {[%clk
0:00:16.9]} 44... Ra4 {[%clk 0:00:15.1]} 45. Ne3 {[%clk 0:00:11.6]} 45... Ne4
{[%clk 0:00:15.3]} 46. Kc2 {[%clk 0:00:11.3]} 46... Nxg3 {[%clk 0:00:15.4]} 47.
Rd4 {[%clk 0:00:11.4]} 47... Rxd4 {[%clk 0:00:14.8]} 48. Bxd4 {[%clk 0:00:12.3]}
48... h5 {[%clk 0:00:15.5]} 49. gxh5 {[%clk 0:00:11.4]} 49... Nxh5 {[%clk
0:00:16.4]} 50. Kd3 {[%clk 0:00:11.9]} 50... Kf7 {[%clk 0:00:16.3]} 51. Nc4
{[%clk 0:00:10.3]} 51... g6 {[%clk 0:00:14.2]} 52. Nd6+ {[%clk 0:00:10.2]} 52...
Kg7 {[%clk 0:00:12.9]} 53. Ke4 {[%clk 0:00:09.6]} 53... Ng3+ {[%clk 0:00:12.8]}
54. Kf4 {[%clk 0:00:09.7]} 54... Nxf5 {[%clk 0:00:13.7]} 55. Nxf5+ {[%clk
0:00:10.3]} 55... gxf5 {[%clk 0:00:14.4]} 56. Kxf5 {[%clk 0:00:11.2]} 56... Kf7
{[%clk 0:00:14.8]} 57. Bxf6 {[%clk 0:00:12.1]} 1/2-1/2